fUSD/lending_fUSD_20251226
["ID","MTS","AMOUNT","RATE_DAILY","PERIOD"]
[399835533,1766719843836,-744.49641742,0.00016438,2]
[399835534,1766719843846,-617.96,0.00016438,2]
[399835535,1766719843856,-2355.35322838,0.00016442,2]
[399835536,1766719843867,-6761.18574325,0.00016442,2]
[399835537,1766719843878,-150.0,0.00016483,2]
[399835538,1766719843888,-293.0,0.00016492,2]
[399835539,1766719843898,-1009.0,0.000165,2]
[399835540,1766719843909,-150.0,0.00016501,2]
[399835541,1766719843919,-293.0,0.00016538,2]
[399835542,1766719843929,-150.0,0.00016546,2]
[399835543,1766719843939,-465.05,0.00016548,2]
[399835544,1766719843950,-465.05,0.00016548,2]
[399835545,1766719843959,-465.05,0.00016548,2]
[399835546,1766719843969,-465.05,0.00016548,2]
[399835547,1766719843979,-465.05,0.00016548,2]
[399835548,1766719843989,-465.05,0.00016548,2]
[399835549,1766719843999,-465.05,0.00016548,2]
[399835550,1766719844010,-465.05,0.00016548,2]
[399835551,1766719844019,-465.05,0.00016548,2]
[399835552,1766719844030,-465.05,0.00016548,2]
[399835553,1766719844040,-465.05,0.00016548,2]
[399835554,1766719844050,-465.05,0.00016548,2]
[399835555,1766719844059,-465.05,0.00016548,2]
[399835556,1766719844070,-465.05,0.00016548,2]
[399835557,1766719844080,-465.05,0.00016548,2]
[399835558,1766719844090,-1049.9,0.00016548,2]
[399835559,1766719844099,-293.0,0.00016584,2]
[399835560,1766719844109,-150.0,0.00016609,2]
[399835561,1766719844118,-155.32,0.00016628,2]
[399835562,1766719844129,-293.0,0.00016631,2]
[399835563,1766719844138,-150.0,0.00016647,2]
[399835564,1766719844148,-1340.64193132,0.0001666,2]
[399835565,1766719844160,-150.0,0.00016672,2]
[399835566,1766719844170,-293.0,0.00016677,2]
[399835567,1766719844179,-151.04,0.00016685,2]
[399835568,1766719844189,-595.37131296,0.00016697,2]
[399835569,1766719844199,-500.0,0.00016699,2]
[399835570,1766719844209,-150.0,0.00016699,2]
[399835571,1766719844219,-500.0,0.00016699,2]
[399835572,1766719844229,-150.0,0.00016699,2]
[399835573,1766719844239,-500.0,0.00016699,2]
[399835574,1766719844251,-150.0,0.00016699,2]
[399835575,1766719844261,-150.0,0.00016699,2]
[399835576,1766719844271,-500.0,0.00016699,2]
[399835577,1766719844281,-500.0,0.00016699,2]
[399835578,1766719844291,-150.0,0.00016699,2]
[399835579,1766719844301,-10000.0,0.0001671,2]
[399835580,1766719844311,-293.0,0.00016723,2]
[399835581,1766719844320,-500.0,0.00016726,2]
[399835582,1766719844329,-224.36439977,0.00016726,2]
[399835583,1766719844338,-500.0,0.00016726,2]
[399835584,1766719844347,-150.0,0.00016726,2]
[399835585,1766719844357,-551.95789067,0.00016726,2]
[399835586,1766719844366,-150.0,0.00016726,2]
[399835587,1766719844376,-150.0,0.00016726,2]
[399835588,1766719844386,-500.0,0.00016726,2]
[399835589,1766719844396,-500.0,0.00016726,2]
[399835590,1766719844406,-150.0,0.00016726,2]
[399835591,1766719844417,-500.4525284,0.00016731,2]
[399835592,1766719844427,-680.51529668,0.00016731,2]
[399835593,1766719844436,-799.72437888,0.00016731,2]
[399835594,1766719844447,-500.85707724,0.00016731,2]
[399835595,1766719844467,-1000.0,0.00016731,2]
[399835596,1766719844489,-516.27997317,0.00016731,2]
[399835597,1766719844502,-913.88399981,0.00016731,2]
[399835598,1766719844513,-1000.0,0.00016731,2]
[399835599,1766719844524,-1000.0,0.00016731,2]
[399835600,1766719844534,-511.82107275,0.00016731,2]
[399835601,1766719844545,-500.43644323,0.00016731,2]
[399835602,1766719844555,-1000.0,0.00016731,2]
[399835603,1766719844566,-1000.0,0.00016731,2]
[399835604,1766719844577,-150.0,0.00016735,2]
[399835605,1766719844587,-150.0,0.00016744,2]
[399835606,1766719844597,-500.0,0.00016754,2]
[399835607,1766719844608,-500.0,0.00016754,2]
[399835608,1766719844619,-175.91364612,0.00016754,2]
[399835609,1766719844629,-150.98746646,0.00016754,2]
[399835610,1766719844641,-175.83818787,0.00016754,2]
[399835611,1766719844655,-500.0,0.00016754,2]
[399835612,1766719844667,-500.0,0.00016754,2]
[399835613,1766719844677,-211.99403485,0.00016754,2]
[399835614,1766719844687,-819.0,0.00016754,2]
[399835615,1766719844698,-293.0,0.00016769,2]
[399835616,1766719844707,-819.0,0.0001677,2]
[399835617,1766719844717,-163.61,0.00016771,2]
[399835618,1766719844729,-500.0,0.00016781,2]
[399835619,1766719844739,-500.0,0.00016781,2]
[399835620,1766719844748,-500.0,0.00016781,2]
[399835621,1766719844758,-500.0,0.00016781,2]
[399835622,1766719844768,-819.0,0.00016791,2]
[399835623,1766719844778,-150.0,0.00016798,2]
[399835624,1766719844787,-500.0,0.00016809,2]
[399835625,1766719844797,-224.48359004,0.00016809,2]
[399835626,1766719844807,-571.61372458,0.00016809,2]
[399835627,1766719844817,-293.0,0.00016815,2]
[399835628,1766719844827,-26249.10218768,0.0001683,2]
[399835629,1766719844838,-500.0,0.00016836,2]
[399835630,1766719844848,-581.60962426,0.0001684,2]
[399835631,1766719844858,-150.0,0.0001686,2]
[399835632,1766719844867,-293.0,0.00016861,2]
[399835633,1766719844877,-160.59250585,0.00016862,2]
[399835634,1766719844886,-500.0,0.00016863,2]
[399835635,1766719844895,-200.0,0.00016864,2]
[399835636,1766719844904,-25000.0,0.00016865,3]
[399835637,1766719844915,-177.44,0.00016865,2]
[399835638,1766719844925,-25000.0,0.00016874,3]
[399835639,1766719844935,-500.0,0.00016891,2]
[399835640,1766719844944,-25000.0,0.00016891,3]
[399835641,1766719844954,-500.0,0.00016899,2]
[399835642,1766719844964,-160.02274042,0.000169,2]
[399835643,1766719844974,-25000.0,0.000169,3]
[399835644,1766719844983,-2355.35322838,0.000169,2]
[399835645,1766719844994,-6761.18574325,0.000169,2]
[399835646,1766719845003,-152.94489914,0.000169,2]
[399835647,1766719845014,-2889.0,0.000169,2]
[399835648,1766719845024,-293.0,0.00016908,2]
[399835649,1766719845034,-500.0,0.00016918,2]
[399835650,1766719845044,-150.0,0.00016923,2]
[399835651,1766719845054,-500.0,0.00016946,2]
[399835652,1766719845063,-152.0,0.00016953,3]
[399835653,1766719845073,-293.0,0.00016954,2]
[399835654,1766719845083,-270.28,0.00016954,2]
[399835655,1766719845094,-500.0,0.00016973,2]
[399835656,1766719845104,-152.97863194,0.00016973,2]
[399835657,1766719845114,-819.0,0.00016974,2]
[399835658,1766719845123,-1000.0,0.00016985,2]
[399835659,1766719845133,-1000.0,0.00016985,2]
[399835660,1766719845143,-1000.0,0.00016985,2]
[399835661,1766719845152,-1000.0,0.00016985,2]
[399835662,1766719845162,-1000.0,0.00016985,2]
[399835663,1766719845172,-1000.0,0.00016985,2]
[399835664,1766719845181,-1000.0,0.00016985,2]
[399835665,1766719845191,-1000.0,0.00016985,2]
[399835666,1766719845200,-1000.0,0.00016985,2]
[399835667,1766719845210,-159.10512061,0.00016986,2]
[399835668,1766719845221,-157.38311085,0.00016986,2]
[399835669,1766719845231,-155.15685309,0.00016986,2]
[399835670,1766719845241,-162.26054214,0.00016986,2]
[399835671,1766719845251,-155.98355596,0.00016986,2]
[399835672,1766719845261,-156.76302164,0.00016986,2]
[399835673,1766719845272,-151.77304176,0.00016986,2]
[399835674,1766719845283,-152.57737944,0.00016986,2]
[399835675,1766719845294,-155.05161452,0.00016986,2]
[399835676,1766719845304,-683.33057952,0.0001699,2]
[399835677,1766719845313,-683.33057952,0.0001699,2]
[399835678,1766719845323,-819.0,0.00016997,2]
[399835679,1766719845333,-819.0,0.00016998,2]
[399835680,1766719845343,-1270.79727083,0.00016998,5]
[399835681,1766719845353,-500.0,0.00016998,2]
[399835682,1766719845363,-150.0,0.00016999,2]
[399835683,1766719845371,-8751.2141933,0.00016999,2]
[399835684,1766719845381,-262.37897121,0.00016999,2]
[399835685,1766719845391,-1111.24414439,0.00016999,5]
[399835686,1766719845400,-1111.24414438,0.00016999,5]
[399835687,1766719845410,-450734.6417526,0.00016999,2]
[399835688,1766719845419,-185.4473919,0.00016999,2]
[399835689,1766719845429,-3898.8231613,0.00016999,2]
[399835690,1766719845439,-1095.1284939,0.00016999,2]
[399835691,1766719845449,-500.0,0.00016999,2]
[399835692,1766719845459,-500.0,0.00016999,2]
[399835693,1766719845470,-564.82523099,0.00016999,2]
[399835694,1766719845479,-307.66104653,0.00016999,2]
[399835695,1766719845491,-2968843.77707873,0.00017,2]
[399835696,1766719845500,-676677.76123981,0.00017,2]
[399835697,1766719845707,-281.649,0.00017,2]
[399835698,1766719845959,-173.05731677,0.00015865,2]
[399835699,1766719845969,-35400.07788315,0.00017,2]
[399835703,1766719846497,-173.05731677,0.000169,2]
[399835704,1766719846507,-654.49519337,0.00017,2]
[399835705,1766719846519,-779.42431172,0.00017,2]
[399835707,1766719863336,500.0,0.000119,2]
[399835708,1766719866443,500.0,0.000119,2]
[399835709,1766719867459,500.0,0.000119,2]
[399835710,1766719878102,500.0,0.000119,2]
[399835711,1766719928580,500.0,0.000119,2]
[399835713,1766719999911,500.0,0.000119,2]
[399835714,1766720047939,500.0,0.000119,2]
[399835716,1766720118116,418.35766713,0.000119,2]
[399835717,1766720169829,574.9097784,0.000119,2]
[399835718,1766720226865,500.0,0.000119,2]
[399835719,1766720229559,500.0,0.000119,2]
[399835720,1766720230130,500.0,0.000119,2]
[399835721,1766720584943,502.81003765,0.000119,2]
[399835722,1766720586565,501.57773993,0.000119,2]
[399835723,1766720586623,501.74273687,0.000119,2]
[399835732,1766720971764,-251.025,0.00012504,2]
[399835733,1766720971790,-1823.625,0.00012504,2]
[399835734,1766720971814,-414.0,0.000126,2]
[399835735,1766720971840,-300.0,0.00012658,2]
[399835736,1766720971864,-191.0,0.00012658,2]
[399835737,1766720971888,-163.0,0.00012659,2]
[399835738,1766720971913,-300.0,0.00012659,2]
[399835739,1766720971937,-1200.0,0.00012659,2]
[399835740,1766720971964,-2500.0,0.00012659,2]
[399835741,1766720971988,-176.08824839,0.0001266,2]
[399835742,1766720972014,-1408.1027211,0.0001266,2]
[399835743,1766720972039,-207.4,0.00012752,2]
[399835744,1766720972062,-151.0,0.00012756,2]
[399835745,1766720972086,-150.0,0.00012757,2]
[399835746,1766720972109,-234.80172518,0.00012758,2]
[399835747,1766720972133,-459.87132208,0.00012758,2]
[399835748,1766720972161,-500.0,0.00012758,2]
[399835749,1766720972188,-500.0,0.00012758,2]
[399835750,1766720972216,-162.62583768,0.00012758,2]
[399835751,1766720972243,-500.0,0.00012758,2]
[399835752,1766720972270,-500.0,0.00012758,2]
[399835753,1766720972298,-500.0,0.00012758,2]
[399835754,1766720972572,-500.0,0.00012758,2]
[399835755,1766720972600,-500.0,0.00012758,2]
[399835756,1766720972627,-500.0,0.00012758,2]
[399835757,1766720972652,-500.0,0.00012758,2]
[399835758,1766720972677,-500.0,0.00012758,2]
[399835759,1766720972702,-500.0,0.00012758,2]
[399835760,1766720972729,-11557.46014557,0.00012759,2]
[399835761,1766720998272,158.94,7.237e-05,2]
[399835762,1766720998498,158.94,7.84e-05,2]
[399835763,1766720998907,158.94,8.443e-05,2]
[399835764,1766720999104,158.94,9.046e-05,2]
[399835765,1766720999311,158.94,9.649e-05,2]
[399835766,1766720999521,158.94,0.00010252,2]
[399835767,1766720999710,158.94,0.00010855,2]
[399835768,1766721000127,158.94,0.00011458,2]
[399835772,1766721031345,-158.94,0.00012061,2]
[399835773,1766721031356,-250.0,0.00012211,2]
[399835774,1766721031367,-233.61591145,0.0001236,2]
[399835775,1766721031379,-66.38408855,0.0001236,2]
[399835776,1766721031390,-1002.09708591,0.00012658,2]
[399835777,1766721031400,-57222.85054607,0.00012659,2]
[399835778,1766721031416,-7600.47867132,0.00012659,2]
[399835945,1766721037399,-164.36120763,0.00012658,2]
[399835946,1766721037411,-276.24497404,0.00012658,2]
[399835947,1766721037423,-45.66495142,0.00012658,2]
[399835948,1766721037432,-500.0,0.00012658,2]
[399835949,1766721037442,-500.0,0.00012658,2]
[399835950,1766721037452,-268.11364513,0.00012658,2]
[399835951,1766721037464,-231.88635487,0.00012658,2]
[399835952,1766721037474,-53.05855486,0.00012658,2]
[399835953,1766721037494,-446.94144514,0.00012658,2]
[399835954,1766721037504,-500.0,0.00012658,2]
[399835955,1766721037515,-500.0,0.00012658,2]
[399835956,1766721037525,-500.0,0.00012658,2]
[399835957,1766721037534,-500.0,0.00012658,2]
[399835958,1766721037545,-500.0,0.00012658,2]
[399835959,1766721037555,-500.0,0.00012658,2]
[399835960,1766721037565,-620.24706577,0.00012658,2]
[399835961,1766721037575,-500.0,0.00012658,2]
[399835962,1766721037585,-500.0,0.00012658,2]
[399835963,1766721037595,-500.0,0.00012658,2]
[399835964,1766721037605,-4543.93353119,0.00012659,2]
[399835965,1766721037631,-873.11396984,0.00012659,2]
[399835966,1766721037651,-18601.19973194,0.00012659,2]
[399836015,1766721039577,-9819.34607684,0.00012659,2]
[399836016,1766721039589,-5714.54291853,0.00012659,2]
[399836017,1766721039698,-682.81730511,0.00012659,2]
[399836018,1766721039742,-894941.71724916,0.00012659,2]
[399836019,1766721039752,-1019.1851,0.00012659,2]
[399836020,1766721039761,-581.5764057,0.0001266,2]
[399836021,1766721039772,-158.94,0.00012665,2]
[399836022,1766721039782,-255.0,0.0001276,2]
[399836023,1766721039792,-1000.0,0.0001276,2]
[399836024,1766721039803,-1408.10272107,0.00013131,2]
[399836025,1766721039813,-581.57640568,0.00013131,2]
[399836026,1766721039822,-158.94,0.00013268,2]
[399836027,1766721039832,-300.0,0.00013268,2]
[399836028,1766721039842,-250.0,0.00013268,2]
[399836029,1766721039851,-166.66,0.0001333,2]
[399836030,1766721039861,-176.08824835,0.00013367,2]
[399836031,1766721039871,-1408.10272107,0.00013602,2]
[399836032,1766721039881,-581.57640568,0.00013602,2]
[399836033,1766721039890,-300.0,0.00013697,2]
[399836034,1766721039901,-300.0,0.00013697,2]
[399836035,1766721039911,-1200.0,0.00013697,2]
[399836036,1766721039920,-500.0,0.00013698,2]
[399836037,1766721039930,-509.51648321,0.00013698,2]
[399836038,1766721039940,-500.0,0.00013698,2]
[399836039,1766721039950,-500.0,0.00013698,2]
[399836041,1766721039960,-564.82523099,0.00013698,2]
[399836043,1766721039974,-1000.0,0.00013699,2]
[399836045,1766721039983,-9999.99,0.00013699,2]
[399836047,1766721039993,-6622.53,0.00013699,2]
[399836049,1766721040003,-9999.99,0.00013699,2]
[399836051,1766721040015,-12453.7,0.00013699,2]
[399836053,1766721040024,-27978.45,0.00013699,2]
[399836055,1766721040034,-150.99,0.00013699,2]
[399836056,1766721040044,-734.68,0.00013699,2]
[399836058,1766721040053,-150.99,0.00013699,2]
[399836060,1766721040063,-640.85259249,0.00013699,2]
[399836062,1766721040073,-166.66,0.0001377,2]
[399836064,1766721040083,-255.0,0.00013854,2]
[399836066,1766721040092,-63140.55137711,0.00013864,2]
[399836068,1766721040101,-158.94,0.00013871,2]
[399836070,1766721040111,-176.08824835,0.00014073,2]
[399836072,1766721040120,-1408.10272107,0.00014073,2]
[399836074,1766721040131,-581.57640568,0.00014073,2]
[399836076,1766721040141,-166.66,0.0001421,2]
[399836078,1766721040151,-824.34,0.00014266,2]
[399836080,1766721040165,-1000.0,0.00014289,2]
[399836083,1766721040175,-4526.66,0.00014291,2]
[399836085,1766721040185,-969.45,0.00014314,2]
[399836086,1766721040194,-1852.42,0.00014345,2]
[399836089,1766721040205,-158.94,0.00014474,2]
[399836091,1766721040215,-1408.10272107,0.00014544,2]
[399836093,1766721040225,-581.57640568,0.00014544,2]
[399836095,1766721040235,-166.66,0.0001465,2]
[399836097,1766721040245,-200.0,0.0001468,2]
[399836099,1766721040255,-176.08824835,0.0001478,2]
[399836101,1766721040266,-420.0,0.0001501,2]
[399836103,1766721040276,-420.0,0.0001501,2]
[399836105,1766721040286,-1408.10272107,0.00015016,2]
[399836107,1766721040296,-581.57640568,0.00015016,2]
[399836109,1766721040306,-1680.0,0.00015067,2]
[399836111,1766721040316,-166.66,0.0001509,2]
[399836112,1766721040326,-176.08824835,0.00015487,2]
[399836114,1766721040341,-1408.10272107,0.00015487,2]
[399836116,1766721040351,-581.57640568,0.00015487,2]
[399836119,1766721040366,-1942.27,0.0001549,2]
[399836121,1766721040375,-151.0,0.000155,2]
[399836123,1766721040385,-151.0,0.000155,2]
[399836125,1766721040395,-166.66,0.0001553,2]
[399836127,1766721040405,-200.0,0.0001589,2]
[399836129,1766721040416,-1408.10272107,0.00015958,2]
[399836131,1766721040426,-1000.0,0.00016075,2]
[399836133,1766721040437,-322.6107,0.00016149,2]
[399836134,1766721040447,-574.12855637,0.00016149,2]
[399836136,1766721040457,-500.0,0.00016149,2]
[399836137,1766721040468,-500.0,0.00016149,2]
[399836138,1766721040478,-500.0,0.00016149,2]
[399836139,1766721040488,-500.0,0.00016149,2]
[399836140,1766721040498,-500.0,0.00016149,2]
[399836141,1766721040508,-500.0,0.00016149,2]
[399836142,1766721040518,-500.0,0.00016149,2]
[399836143,1766721040528,-500.0,0.00016149,2]
[399836144,1766721040539,-500.0,0.00016149,2]
[399836145,1766721040549,-500.0,0.00016149,2]
[399836146,1766721040559,-500.0,0.00016149,2]
[399836147,1766721040570,-151.0,0.00016149,2]
[399836148,1766721040581,-620.0,0.00016149,2]
[399836149,1766721040591,-200.27562112,0.00016183,2]
[399836150,1766721040602,-500.0,0.00016183,2]
[399836151,1766721040612,-176.08824835,0.00016193,2]
[399836152,1766721040622,-1408.10272107,0.00016429,2]
[399836153,1766721040633,-519.86066017,0.00016438,2]
[399836154,1766721040642,-500.0,0.00016438,2]
[399836155,1766721040652,-300.0,0.0001645,2]
[399836156,1766721040662,-512.0,0.00016573,2]
[399836157,1766721040673,-4507.73411025,0.00016655,2]
[399836158,1766721040683,-670.32096566,0.0001666,2]
[399836159,1766721040694,-595.37131296,0.00016697,2]
[399836160,1766721040703,-500.0,0.00016699,2]
[399836161,1766721040714,-500.0,0.00016726,2]
[399836162,1766721040727,-1000.0,0.00016731,2]
[399836163,1766721040738,-500.0,0.00016754,2]
[399836164,1766721040748,-343.17511814,0.00016781,2]
[399836165,1766721040758,-200.0,0.00016864,2]
[399836166,1766721040769,-176.08824835,0.000169,2]
[399836167,1766721040778,-1408.10272107,0.000169,2]
[399836168,1766721040788,-2317.0,0.000169,2]
[399836169,1766721040798,-97474.7630524,0.00016972,2]
[399836170,1766721040807,-151.0,0.00016997,2]
[399836171,1766721040817,-307.66104653,0.00016999,2]
[399836172,1766721040827,-90713.17554759,0.00017,2]
[399836173,1766721040838,-2372866.5827076,0.00017,2]
[399836180,1766721042583,-485.305,0.00017,2]
[399836181,1766721042638,-34110.1396944,0.00017,2]
[399836182,1766721042848,-489.64607935,0.00017,2]
[399836183,1766721042868,-736.43301719,0.00017,2]
[399836206,1766721046065,-32.21486232,0.00015958,2]
[399836209,1766721046080,-549.36154336,0.00015958,2]
[399836211,1766721046090,-643.73845664,0.00017,2]
[399836381,1766722231424,-1010.2,0.00012406,2]
[399836382,1766722231474,-312.0,0.00012406,2]
[399836383,1766722231581,-136.7,0.00012406,2]
[399836384,1766722231592,-217.84379128,0.00012457,2]
[399836386,1766722231857,-312.0,0.00012556,2]
[399836387,1766722231876,-1200.0,0.00012557,2]
[399836388,1766722231886,-366.86009232,0.00012558,2]
[399836389,1766722231897,-300.0,0.00012558,2]
[399836390,1766722231907,-300.0,0.00012558,2]
[399836392,1766722231916,-300.0,0.00012558,2]
[399836393,1766722231926,-500.0,0.00012558,2]
[399836395,1766722231935,-247.65568556,0.00012559,2]
[399836396,1766722231945,-427.76140572,0.00012559,2]
[399836397,1766722232140,-709.0,0.00012559,2]
[399836398,1766722232152,-851.84153694,0.00012559,2]
[399836399,1766722232162,-523.41876515,0.00012559,2]
[399836400,1766722232172,-474.73969791,0.00012559,2]
[399836401,1766722232183,-544.44540209,0.00012559,2]
[399836402,1766722232193,-394.1408676,0.00012559,2]
[399836403,1766722234376,5526.0,0.000133,5]
[399836404,1766722234603,4343.0,0.00013,3]
[399836406,1766722237569,-225.33694782,0.00012558,2]
[399836407,1766722237579,-500.0,0.00012558,2]
[399836408,1766722237589,-399.73181804,0.00012558,2]
[399836409,1766722237603,-500.0,0.00012558,2]
[399836410,1766722237613,-2648.55778146,0.00012559,2]
[399836411,1766722237625,-1789.35532533,0.00012559,2]
[399836412,1766722237638,-753.57970942,0.00012559,2]
[399836413,1766722237650,-391.7686604,0.00012559,2]
[399836414,1766722237671,-6882.42464948,0.00012559,2]
[399836415,1766722237683,-1364.2629872,0.00012559,2]
[399836416,1766722237733,-12029.26731761,0.00012559,2]
[399836597,1766722239679,-841.2349995,0.00012559,2]
[399836611,1766722239838,-972905.407702,0.00012559,2]
[399836613,1766722239847,-150.0,0.00012651,2]
[399836615,1766722239858,-500.0,0.00012652,2]
[399836617,1766722239868,-500.0,0.00012652,2]
[399836618,1766722239878,-500.0,0.00012652,2]
[399836619,1766722239888,-500.0,0.00012652,2]
[399836620,1766722239899,-500.0,0.00012652,2]
[399836621,1766722239909,-527.72962122,0.00012652,2]
[399836622,1766722239918,-151.0,0.00012652,2]
[399836623,1766722239928,-151.0,0.00012652,2]
[399836624,1766722239938,-151.0,0.00012652,2]
[399836625,1766722239948,-151.0,0.00012652,2]
[399836626,1766722239960,-151.0,0.00012652,2]
[399836627,1766722239977,-151.0,0.00012652,2]
[399836628,1766722239986,-151.0,0.00012652,2]
[399836629,1766722239996,-151.0,0.00012652,2]
[399836630,1766722240006,-151.0,0.00012652,2]
[399836631,1766722240015,-151.0,0.00012652,2]
[399836632,1766722240025,-151.0,0.00012652,2]
[399836633,1766722240035,-150.99,0.00012658,2]
[399836634,1766722240045,-12453.7,0.00012658,2]
[399836635,1766722240054,-9999.99,0.00012658,2]
[399836636,1766722240064,-9999.99,0.00012658,2]
[399836637,1766722240075,-150.99,0.00012658,2]
[399836638,1766722240084,-6622.53,0.00012658,2]
[399836639,1766722240094,-27978.45,0.00012658,2]
[399836640,1766722240103,-1000.0,0.00012659,2]
[399836641,1766722240113,-734.68,0.00012659,2]
[399836642,1766722240123,-1988.60294266,0.00013041,2]
[399836643,1766722240133,-523.41876511,0.00013041,2]
[399836644,1766722240142,-247.65568554,0.00013283,2]
[399836645,1766722240152,-67422.24947467,0.00013409,2]
[399836646,1766722240162,-1988.60294266,0.00013524,2]
[399836647,1766722240171,-523.41876511,0.00013524,2]
[399836648,1766722240186,-300.0,0.00013647,2]
[399836649,1766722240200,-250.0,0.00013647,2]
[399836650,1766722240210,-150.0,0.00013677,2]
[399836651,1766722240221,-500.0,0.00013698,2]
[399836652,1766722240231,-509.51648321,0.00013698,2]
[399836653,1766722240240,-500.0,0.00013698,2]
[399836654,1766722240250,-500.0,0.00013698,2]
[399836655,1766722240259,-564.82523099,0.00013698,2]
[399836656,1766722240271,-640.85259249,0.00013699,2]
[399836657,1766722240282,-255.0,0.00013751,2]
[399836658,1766722240297,-420.0,0.00013778,2]
[399836659,1766722240308,-420.0,0.00013778,2]
[399836660,1766722240317,-1680.0,0.00013813,2]
[399836661,1766722240327,-247.65568554,0.00014006,2]
[399836662,1766722240340,-1988.60294266,0.00014006,2]
[399836663,1766722240350,-523.41876511,0.00014006,2]
[399836664,1766722240360,-166.66,0.00014143,2]
[399836665,1766722240370,-166.66,0.00014441,2]
[399836666,1766722240380,-1988.60294266,0.00014488,2]
[399836667,1766722240390,-523.41876511,0.00014488,2]
[399836668,1766722240400,-150.0,0.0001457,2]
[399836669,1766722240410,-247.65568554,0.0001473,2]
[399836670,1766722240419,-166.66,0.00014738,2]
[399836671,1766722240430,-1988.60294266,0.00014971,2]
[399836672,1766722240440,-523.41876511,0.00014971,2]
[399836673,1766722240449,-262.48255881,0.00014988,2]
[399836674,1766722240459,-1600.0,0.00014989,2]
[399836675,1766722240469,-166.66,0.00015036,2]
[399836676,1766722240479,-300.0,0.00015117,2]
[399836677,1766722240489,-512.0,0.00015194,2]
[399836678,1766722240499,-166.66,0.00015334,2]
[399836679,1766722240508,-247.65568554,0.00015453,2]
[399836680,1766722240518,-1988.60294266,0.00015453,2]
[399836681,1766722240527,-523.41876511,0.00015453,2]
[399836682,1766722240538,-166.66,0.00015632,2]
[399836683,1766722240548,-949.77,0.00015714,2]
[399836684,1766722240558,-1988.60294266,0.00015935,2]
[399836685,1766722240568,-523.41876511,0.00015935,2]
[399836686,1766722240578,-500.0,0.00016149,2]
[399836687,1766722240587,-500.0,0.00016149,2]
[399836688,1766722240597,-500.0,0.00016149,2]
[399836689,1766722240607,-500.0,0.00016149,2]
[399836690,1766722240616,-500.0,0.00016149,2]
[399836691,1766722240626,-500.0,0.00016149,2]
[399836692,1766722240636,-500.0,0.00016149,2]
[399836693,1766722240646,-500.0,0.00016149,2]
[399836694,1766722240656,-500.0,0.00016149,2]
[399836695,1766722240666,-574.12855637,0.00016149,2]
[399836696,1766722240676,-151.0,0.00016149,2]
[399836697,1766722240685,-500.0,0.00016149,2]
[399836698,1766722240695,-500.0,0.00016149,2]
[399836699,1766722240705,-322.6107,0.00016149,2]
[399836700,1766722240715,-620.0,0.00016149,2]
[399836701,1766722240725,-247.65568554,0.00016177,2]
[399836702,1766722240740,-163.02006394,0.00016183,2]
[399836703,1766722240750,-200.27562112,0.00016183,2]
[399836704,1766722240760,-500.0,0.00016183,2]
[399836705,1766722240770,-1988.60294266,0.00016418,2]
[399836706,1766722240780,-523.41876511,0.00016418,2]
[399836707,1766722240790,-500.0,0.00016438,2]
[399836708,1766722240800,-519.86066017,0.00016438,2]
[399836709,1766722240810,-470.0,0.00016615,2]
[399836710,1766722240819,-670.32096566,0.0001666,2]
[399836711,1766722240829,-178.55,0.00016685,2]